fUST/lending_fUST_20250101
["ID","MTS","AMOUNT","RATE_DAILY","PERIOD"]
[347299446,1735667445582,-500.0,0.00019726,3]
[347299447,1735667445591,-1319.91363,0.00019726,2]
[347299448,1735667445601,-1319.91363,0.00019726,2]
[347299449,1735667445613,-500.0,0.00019726,3]
[347299450,1735667445622,-505.31059276,0.00019726,3]
[347299451,1735667445631,-151.0,0.00019726,2]
[347299452,1735667445640,-168.0,0.00019726,3]
[347299453,1735667445649,-151.0,0.00019726,2]
[347299454,1735667445659,-1278.55,0.00019726,3]
[347299455,1735667445668,-330.7807669,0.00019726,3]
[347299456,1735667445677,-151.0,0.00019726,2]
[347299457,1735667445686,-551.19,0.00019726,3]
[347299458,1735667445695,-961.46,0.00019726,3]
[347299459,1735667445705,-500.0,0.00019726,3]
[347299460,1735667445714,-151.0,0.00019726,2]
[347299461,1735667445723,-852.97,0.00019726,3]
[347299462,1735667445732,-500.0,0.00019726,3]
[347299463,1735667445742,-660.61,0.00019726,3]
[347299464,1735667445751,-500.0,0.00019726,3]
[347299465,1735667445760,-500.0,0.00019726,2]
[347299466,1735667445770,-500.0,0.00019726,3]
[347299467,1735667445779,-500.0,0.00019726,3]
[347299468,1735667445788,-500.0,0.00019726,3]
[347299469,1735667445798,-500.0,0.00019726,3]
[347299470,1735667445807,-529.34,0.00019726,3]
[347299471,1735667445817,-1259.16,0.00019726,3]
[347299472,1735667445826,-423.981439,0.00019726,2]
[347299473,1735667445835,-423.981439,0.00019726,2]
[347299474,1735667445844,-619.23,0.00019726,3]
[347299475,1735667445856,-423.981439,0.00019726,2]
[347299476,1735667445865,-898.16,0.00019726,3]
[347299477,1735667445875,-423.981439,0.00019726,2]
[347299478,1735667445885,-500.0,0.00019726,3]
[347299479,1735667445894,-500.0,0.00019726,3]
[347299480,1735667445903,-500.0,0.00019726,3]
[347299481,1735667445913,-151.0,0.00019726,2]
[347299482,1735667445922,-500.0,0.00019726,3]
[347299483,1735667445932,-500.0,0.00019726,3]
[347299486,1735667445941,-6822.57,0.00019726,3]
[347299487,1735667445953,-500.0,0.00019726,3]
[347299490,1735667445963,-500.0,0.00019726,3]
[347299491,1735667445972,-10117.05,0.00019726,3]
[347299492,1735667445981,-500.0,0.00019726,3]
[347299493,1735667445991,-314.847636,0.00019726,2]
[347299494,1735667445999,-1161.536742,0.00019726,2]
[347299496,1735667446009,-1161.536742,0.00019726,2]
[347299497,1735667446018,-1305.31,0.00019726,3]
[347299498,1735667446027,-314.847636,0.00019726,2]
[347299499,1735667446037,-1615.97,0.00019726,3]
[347299500,1735667446046,-1161.536742,0.00019726,2]
[347299501,1735667446055,-500.0,0.00019726,3]
[347299502,1735667446065,-1161.536742,0.00019726,2]
[347299503,1735667446074,-500.0,0.00019726,3]
[347299504,1735667446084,-500.0,0.00019726,3]
[347299505,1735667446094,-500.0,0.00019726,3]
[347299507,1735667446105,-1583.73,0.00019726,3]
[347299508,1735667446114,-500.0,0.00019726,3]
[347299510,1735667446123,-500.0,0.00019726,3]
[347299512,1735667446132,-500.0,0.00019726,3]
[347299513,1735667446140,-500.0,0.00019726,3]
[347299514,1735667446149,-924.8,0.00019726,3]
[347299515,1735667446158,-500.0,0.00019726,3]
[347299516,1735667446168,-500.0,0.00019726,3]
[347299518,1735667446177,-1636.47,0.00019726,3]
[347299520,1735667446187,-500.0,0.00019726,3]
[347299522,1735667446197,-973.58,0.00019726,3]
[347299524,1735667446206,-500.0,0.00019726,3]
[347299526,1735667446215,-970.46,0.00019726,3]
[347299527,1735667446224,-500.0,0.00019726,3]
[347299528,1735667446234,-500.0,0.00019726,3]
[347299529,1735667446243,-500.0,0.00019726,3]
[347299530,1735667446342,-949.8,0.00019726,3]
[347299531,1735667446352,-742.06,0.00019726,3]
[347299532,1735667446363,-889.29,0.00019726,3]
[347299533,1735667446373,-500.0,0.00019726,3]
[347299534,1735667446381,-1138.73,0.00019726,3]
[347299535,1735667446390,-500.0,0.00019726,3]
[347299536,1735667446399,-500.0,0.00019726,3]
[347299537,1735667446408,-151.0,0.00019726,2]
[347299538,1735667446418,-151.0,0.00019726,2]
[347299539,1735667446427,-500.0,0.00019726,3]
[347299540,1735667446437,-899.84,0.00019726,3]
[347299541,1735667446446,-974.07,0.00019726,3]
[347299542,1735667446455,-330.95154393,0.00019726,3]
[347299543,1735667446465,-1137.33,0.00019726,3]
[347299544,1735667446474,-669.2,0.00019726,3]
[347299545,1735667446483,-500.0,0.00019726,3]
[347299546,1735667446493,-500.0,0.00019726,3]
[347299547,1735667446503,-681.668854,0.00019726,2]
[347299548,1735667446512,-3522.84,0.00019726,3]
[347299549,1735667446522,-681.668854,0.00019726,2]
[347299550,1735667446531,-500.0,0.00019726,3]
[347299551,1735667446540,-1091.71,0.00019726,3]
[347299552,1735667446549,-626.35,0.00019726,3]
[347299553,1735667446558,-500.0,0.00019726,3]
[347299554,1735667446567,-500.0,0.00019726,3]
[347299555,1735667446576,-887.93,0.00019726,3]
[347299556,1735667446585,-535.902229,0.00019726,2]
[347299557,1735667446594,-1044.83,0.00019726,3]
[347299558,1735667446605,-655.13,0.00019726,3]
[347299559,1735667446614,-535.902229,0.00019726,2]
[347299560,1735667446623,-151.0,0.00019726,2]
[347299561,1735667446632,-151.0,0.00019726,2]
[347299562,1735667446641,-500.0,0.00019726,3]
[347299563,1735667446650,-3487.55,0.00019726,3]
[347299564,1735667446660,-500.0,0.00019726,3]
[347299565,1735667446670,-785.81,0.00019726,3]
[347299566,1735667446678,-500.0,0.00019726,3]
[347299567,1735667446687,-643.19,0.00019726,3]
[347299568,1735667446697,-500.0,0.00019726,3]
[347299569,1735667446706,-500.0,0.00019726,3]
[347299570,1735667446715,-1011.04,0.00019726,3]
[347299571,1735667446727,-500.0,0.00019726,3]
[347299572,1735667446736,-500.0,0.00019726,3]
[347299573,1735667446747,-6259.3,0.00019726,3]
[347299574,1735667446756,-500.0,0.00019726,3]
[347299575,1735667446766,-569.88788877,0.00019726,3]
[347299576,1735667446775,-500.0,0.00019726,3]
[347299577,1735667446784,-526.01,0.00019726,3]
[347299579,1735667446793,-500.0,0.00019726,3]
[347299581,1735667446803,-500.0,0.00019726,3]
[347299583,1735667446812,-500.0,0.00019726,3]
[347299585,1735667446821,-1775.9,0.00019726,3]
[347299587,1735667446830,-1175.66,0.00019726,3]
[347299588,1735667446839,-507.90531955,0.00019726,3]
[347299589,1735667446848,-49369.0,0.00019726,3]
[347299590,1735667446861,-931.62,0.00019726,3]
[347299591,1735667446870,-503.17145217,0.00019726,3]
[347299592,1735667446879,-500.0,0.00019726,3]
[347299593,1735667446890,-2195.01,0.00019726,3]
[347299594,1735667446899,-780.75,0.00019726,3]
[347299595,1735667446908,-500.0,0.00019726,3]
[347299596,1735667446918,-500.0,0.00019726,3]
[347299597,1735667446927,-1238.49,0.00019726,3]
[347299598,1735667446935,-151.0,0.00019726,2]
[347299599,1735667446945,-573.9,0.00019726,3]
[347299600,1735667446954,-1206.983899,0.00019726,2]
[347299601,1735667446963,-2249.87,0.00019726,3]
[347299602,1735667446972,-1206.983899,0.00019726,2]
[347299603,1735667446981,-500.0,0.00019726,3]
[347299604,1735667446990,-1770.04,0.00019726,3]
[347299606,1735667447000,-820.83,0.00019726,3]
[347299607,1735667447009,-720.35,0.00019726,3]
[347299608,1735667447018,-4579.19,0.00019726,3]
[347299609,1735667447027,-504.84278697,0.00019726,3]
[347299610,1735667447036,-151.0,0.00019726,2]
[347299611,1735667447045,-1152.48,0.00019726,3]
[347299612,1735667447055,-151.0,0.00019726,2]
[347299613,1735667447064,-500.0,0.00019726,3]
[347299614,1735667447074,-533.66,0.00019726,3]
[347299615,1735667447082,-500.0,0.00019726,3]
[347299616,1735667447091,-500.0,0.00019726,3]
[347299618,1735667447101,-602.59,0.00019726,3]
[347299620,1735667447113,-151.0,0.00019726,2]
[347299622,1735667447122,-151.0,0.00019726,2]
[347299623,1735667447131,-998.59,0.00019726,3]
[347299624,1735667447140,-500.0,0.00019726,3]
[347299625,1735667447150,-151.0,0.00019726,2]
[347299626,1735667447160,-186.274761,0.00019726,2]
[347299627,1735667447169,-500.0,0.00019726,3]
[347299628,1735667447178,-500.0,0.00019726,3]
[347299629,1735667447187,-500.0,0.00019726,3]
[347299630,1735667447196,-2398.43,0.00019726,3]
[347299631,1735667447205,-500.0,0.00019726,3]
[347299632,1735667447215,-500.0,0.00019726,3]
[347299633,1735667447224,-1309.91,0.00019726,3]
[347299634,1735667447234,-500.0,0.00019726,3]
[347299635,1735667447243,-500.0,0.00019726,3]
[347299636,1735667447253,-3595.1,0.00019726,3]
[347299637,1735667447264,-570.70236481,0.00019726,3]
[347299638,1735667447275,-500.0,0.00019726,3]
[347299639,1735667447284,-10162.83,0.00019726,3]
[347299640,1735667447294,-500.0,0.00019726,3]
[347299641,1735667447303,-500.0,0.00019726,3]
[347299642,1735667447313,-1590.43,0.00019726,3]
[347299643,1735667447323,-500.0,0.00019726,3]
[347299644,1735667447332,-602.53,0.00019726,3]
[347299645,1735667447342,-1870.48,0.00019726,3]
[347299646,1735667447351,-599.92003848,0.00019796,2]
[347299647,1735667447363,-151.0,0.000198,2]
[347299648,1735667447372,-151.0,0.000198,2]
[347299649,1735667447382,-420.0,0.00019827,2]
[347299650,1735667447391,-4734.15602882,0.0001989,2]
[347299651,1735667447401,-1760.46585448,0.0001989,2]
[347299652,1735667447410,-151.0,0.000199,2]
[347299653,1735667447420,-210.05770162,0.00019926,2]
[347299654,1735667447430,-244.0,0.00019963,2]
[347299655,1735667447440,-153.24,0.0001997,2]
[347299656,1735667447449,-747.4407298,0.00019971,2]
[347299657,1735667447458,-599.92003848,0.00019975,2]
[347299658,1735667447468,-147282.52599327,0.0001999,2]
[347299659,1735667447477,-15193.51622775,0.0001999,2]
[347299660,1735667447486,-231477.08237594,0.0001999,7]
[347299661,1735667447495,-171.551662,0.0001999,2]
[347299662,1735667447505,-171.551662,0.0001999,2]
[347299663,1735667447514,-695.858059,0.0001999,2]
[347299664,1735667447523,-695.858059,0.0001999,2]
[347299665,1735667447532,-695.858059,0.0001999,2]
[347299666,1735667447542,-695.858059,0.0001999,2]
[347299667,1735667447551,-1319.91363,0.0001999,2]
[347299668,1735667447559,-1319.91363,0.0001999,2]
[347299669,1735667447569,-1319.91363,0.0001999,2]
[347299670,1735667447578,-1319.91363,0.0001999,2]
[347299671,1735667447587,-151.0,0.0001999,2]
[347299672,1735667447597,-151.0,0.0001999,2]
[347299673,1735667447606,-221.044916,0.0001999,2]
[347299674,1735667447615,-423.981439,0.0001999,2]
[347299675,1735667447624,-423.981439,0.0001999,2]
[347299676,1735667447633,-151.0,0.0001999,2]
[347299677,1735667447643,-151.0,0.0001999,2]
[347299678,1735667447652,-1161.536742,0.0001999,2]
[347299679,1735667447662,-1161.536742,0.0001999,2]
[347299680,1735667447671,-151.0,0.0001999,2]
[347299681,1735667447681,-681.668854,0.0001999,2]
[347299682,1735667447689,-681.668854,0.0001999,2]
[347299683,1735667447698,-681.668854,0.0001999,2]
[347299684,1735667447707,-681.668854,0.0001999,2]
[347299685,1735667447717,-535.902229,0.0001999,2]
[347299686,1735667447726,-535.902229,0.0001999,2]
[347299687,1735667447735,-535.902229,0.0001999,2]
[347299688,1735667447744,-535.902229,0.0001999,2]
[347299689,1735667447753,-151.0,0.0001999,2]
[347299690,1735667447761,-151.0,0.0001999,2]
[347299691,1735667447771,-1206.983899,0.0001999,2]
[347299692,1735667447780,-1206.983899,0.0001999,2]
[347299693,1735667447790,-1206.983899,0.0001999,2]
[347299694,1735667447798,-1206.983899,0.0001999,2]
[347299695,1735667447807,-151.0,0.0001999,2]
[347299696,1735667447816,-151.0,0.0001999,2]
[347299697,1735667447825,-8335.0,0.0002,3]
[347299698,1735667447834,-1218.80590046,0.0002,3]
[347299702,1735667448070,-500.0,0.00019178,2]
[347299703,1735667448080,-7115.19409954,0.0002,3]
[347299704,1735667448089,-8334.0,0.0002,3]
[347299705,1735667448098,-8334.0,0.0002,3]
[347299706,1735667448109,-8334.0,0.0002,3]
[347299707,1735667448118,-8334.0,0.0002,3]
[347299708,1735667448127,-150.0,0.0002,2]
[347299709,1735667448137,-10000.0,0.0002,3]
[347299710,1735667448146,-10000.0,0.0002,3]
[347299711,1735667448155,-10000.0,0.0002,30]
[347299712,1735667448164,-151.0,0.0002,2]
[347299713,1735667448174,-151.0,0.0002,2]
[347299714,1735667448183,-151.0,0.0002,2]
[347299715,1735667448192,-151.0,0.0002,2]
[347299716,1735667448201,-151.0,0.0002,2]
[347299717,1735667448211,-651.902247,0.0002,2]
[347299718,1735667448220,-651.902247,0.0002,2]
[347299719,1735667448229,-151.0,0.0002,2]
[347299720,1735667448239,-151.0,0.0002,2]
[347299721,1735667448247,-382.899481,0.0002,2]
[347299722,1735667448258,-382.899481,0.0002,2]
[347299723,1735667448271,-382.899481,0.0002,2]
[347299724,1735667448280,-382.899481,0.0002,2]
[347299725,1735667448290,-386.366478,0.0002,2]
[347299726,1735667448299,-386.366478,0.0002,2]
[347299727,1735667448310,-386.366478,0.0002,2]
[347299728,1735667448320,-386.366478,0.0002,2]
[347299729,1735667448330,-151.0,0.0002,2]
[347299730,1735667448340,-151.0,0.0002,2]
[347299731,1735667448350,-151.0,0.0002,2]
[347299732,1735667448362,-214.345088,0.0002,2]
[347299733,1735667448372,-420.885378,0.0002,2]
[347299734,1735667448382,-151.0,0.0002,2]
[347299735,1735667448392,-151.0,0.0002,2]
[347299736,1735667448402,-151.0,0.0002,2]
[347299737,1735667448411,-151.0,0.0002,2]
[347299738,1735667448420,-500.0,0.0002,3]
[347299739,1735667448430,-500.0,0.0002,3]
[347299740,1735667448440,-151.0,0.0002,2]
[347299741,1735667448450,-151.0,0.0002,2]
[347299742,1735667448460,-500.0,0.0002,3]
[347299743,1735667448469,-500.0,0.0002,3]
[347299744,1735667448479,-500.0,0.0002,3]
[347299745,1735667448488,-500.0,0.0002,3]
[347299746,1735667448497,-500.0,0.0002,3]
[347299747,1735667448506,-543.56,0.0002,3]
[347299748,1735667448515,-500.0,0.0002,3]
[347299749,1735667448524,-1014.439301,0.0002,2]
[347299750,1735667448533,-1014.439301,0.0002,2]
[347299751,1735667448542,-1014.439301,0.0002,2]
[347299752,1735667448551,-1014.439301,0.0002,2]
[347299753,1735667448561,-151.0,0.0002,2]
[347299754,1735667448570,-151.0,0.0002,2]
[347299755,1735667448579,-151.0,0.0002,2]
[347299756,1735667448589,-151.0,0.0002,2]
[347299757,1735667448598,-1525.91,0.0002,3]
[347299758,1735667448610,-243.82362179,0.0002,3]
[347299759,1735667448619,-500.0,0.0002,3]
[347299760,1735667448628,-500.0,0.0002,3]
[347299761,1735667448637,-500.0,0.0002,3]
[347299762,1735667448646,-500.0,0.0002,3]
[347299763,1735667448656,-500.0,0.0002,3]
[347299764,1735667448665,-500.0,0.0002,3]
[347299765,1735667448674,-929.03,0.0002,3]
[347299766,1735667448684,-151.0,0.0002,2]
[347299767,1735667448693,-151.0,0.0002,2]
[347299768,1735667448702,-151.0,0.0002,2]
[347299769,1735667448712,-921.68,0.0002,3]
[347299770,1735667448721,-500.0,0.0002,3]
[347299771,1735667448730,-663.77,0.0002,3]
[347299772,1735667448739,-500.0,0.0002,3]
[347299773,1735667448748,-329.461715,0.0002,2]
[347299774,1735667448758,-329.461715,0.0002,2]
[347299775,1735667448767,-500.0,0.0002,3]
[347299776,1735667448777,-329.461715,0.0002,2]
[347299777,1735667448786,-329.461715,0.0002,2]
[347299778,1735667448795,-500.0,0.0002,3]
[347299779,1735667448804,-441.214446,0.0002,2]
[347299780,1735667448814,-151.0,0.0002,2]
[347299781,1735667448823,-500.0,0.0002,3]
[347299782,1735667448832,-151.0,0.0002,2]
[347299783,1735667448841,-151.0,0.0002,2]
[347299784,1735667448850,-174.650764,0.0002,2]
[347299785,1735667448861,-151.0,0.0002,2]
[347299786,1735667448870,-151.0,0.0002,2]
[347299787,1735667448880,-441.214446,0.0002,2]
[347299788,1735667448889,-500.0,0.0002,3]
[347299789,1735667448898,-441.214446,0.0002,2]
[347299790,1735667448908,-441.214446,0.0002,2]
[347299791,1735667448917,-503.76093126,0.0002,3]
[347299792,1735667448926,-500.0,0.0002,3]
[347299793,1735667448936,-965.99,0.0002,3]
[347299794,1735667448945,-500.0,0.0002,3]
[347299795,1735667448955,-512.17,0.0002,3]
[347299796,1735667448964,-188.0,0.0002,2]
[347299797,1735667448974,-538.58,0.0002,2]
[347299798,1735667448983,-500.0,0.0002,3]
[347299799,1735667448992,-500.0,0.0002,3]
[347299800,1735667449001,-1114.06,0.0002,3]
[347299801,1735667449011,-500.0,0.0002,3]
[347299802,1735667449020,-500.0,0.0002,3]
[347299803,1735667449029,-500.0,0.0002,3]
[347299804,1735667449039,-500.0,0.0002,3]
[347299805,1735667449048,-500.0,0.0002,3]
[347299806,1735667449058,-500.0,0.0002,3]
[347299807,1735667449067,-500.0,0.0002,3]
[347299808,1735667449077,-500.0,0.0002,3]
[347299809,1735667449086,-500.0,0.0002,3]
[347299810,1735667449096,-500.0,0.0002,3]
[347299811,1735667449108,-906.63,0.0002,3]
[347299812,1735667449120,-660.6,0.0002,3]
[347299813,1735667449130,-500.0,0.0002,3]
[347299814,1735667449139,-574.88,0.0002,3]
[347299815,1735667449149,-6902.88,0.0002,3]
[347299816,1735667449158,-171.551662,0.0002,2]
[347299817,1735667449167,-651.3,0.0002,3]
[347299818,1735667449176,-171.551662,0.0002,2]
[347299819,1735667449185,-171.551662,0.0002,2]
[347299820,1735667449195,-171.551662,0.0002,2]
[347299821,1735667449204,-171.551662,0.0002,2]
[347299822,1735667449213,-171.551662,0.0002,2]
[347299823,1735667449222,-500.0,0.0002,3]
[347299824,1735667449232,-500.0,0.0002,3]
[347299825,1735667449240,-500.0,0.0002,3]
[347299826,1735667449248,-500.0,0.0002,3]
[347299827,1735667449258,-504.84617504,0.0002,3]
[347299828,1735667449272,-500.0,0.0002,3]
[347299829,1735667449282,-500.0,0.0002,3]
[347299830,1735667449294,-618.13,0.0002,3]
[347299831,1735667449309,-500.0,0.0002,3]
[347299832,1735667449319,-695.858059,0.0002,2]
[347299833,1735667449328,-500.0,0.0002,3]
[347299834,1735667449339,-695.858059,0.0002,2]
[347299835,1735667449349,-1118.43,0.0002,3]
[347299836,1735667449362,-695.858059,0.0002,2]
[347299837,1735667449373,-695.858059,0.0002,2]
[347299838,1735667449384,-500.0,0.0002,3]
[347299839,1735667449393,-500.0,0.0002,3]
[347299840,1735667449402,-1319.91363,0.0002,2]
[347299841,1735667449412,-1319.91363,0.0002,2]
[347299842,1735667449421,-500.0,0.0002,3]
[347299843,1735667449430,-1319.91363,0.0002,2]
[347299844,1735667449439,-500.0,0.0002,3]
[347299845,1735667449448,-1319.91363,0.0002,2]
[347299846,1735667449457,-151.0,0.0002,2]
[347299847,1735667449466,-151.0,0.0002,2]
[347299848,1735667449476,-1278.55,0.0002,3]
[347299849,1735667449495,-551.19,0.0002,3]
[347299850,1735667449506,-961.46,0.0002,3]
[347299851,1735667449515,-852.97,0.0002,3]
[347299852,1735667449526,-500.0,0.0002,3]
[347299853,1735667449535,-660.61,0.0002,3]
[347299854,1735667449545,-500.0,0.0002,3]
[347299855,1735667449554,-500.0,0.0002,3]
[347299856,1735667449564,-500.0,0.0002,3]
[347299857,1735667449574,-500.0,0.0002,3]
[347299858,1735667449583,-529.34,0.0002,3]
[347299859,1735667449593,-1259.16,0.0002,3]
[347299860,1735667449602,-423.981439,0.0002,2]
[347299861,1735667449613,-423.981439,0.0002,2]
[347299862,1735667449623,-423.981439,0.0002,2]
[347299863,1735667449633,-619.23,0.0002,3]
[347299864,1735667449642,-898.16,0.0002,3]
[347299865,1735667449776,-423.981439,0.0002,2]
[347299866,1735667449786,-423.981439,0.0002,2]
[347299867,1735667449795,-423.981439,0.0002,2]
[347299868,1735667449805,-500.0,0.0002,3]
[347299869,1735667449815,-500.0,0.0002,3]
[347299870,1735667449824,-500.0,0.0002,3]
[347299871,1735667449833,-151.0,0.0002,2]
[347299872,1735667449843,-500.0,0.0002,3]
[347299873,1735667449852,-6822.57,0.0002,3]
[347299874,1735667449864,-500.0,0.0002,3]
[347299875,1735667449873,-10117.05,0.0002,3]
[347299876,1735667449882,-314.847636,0.0002,2]
[347299877,1735667449893,-314.847636,0.0002,2]
[347299878,1735667449903,-314.847636,0.0002,2]
[347299879,1735667449912,-1161.536742,0.0002,2]
[347299880,1735667449922,-1161.536742,0.0002,2]
[347299881,1735667449931,-1305.31,0.0002,3]
[347299882,1735667449941,-1161.536742,0.0002,2]
[347299883,1735667449950,-314.847636,0.0002,2]
[347299884,1735667449960,-314.847636,0.0002,2]
[347299885,1735667449970,-1615.97,0.0002,3]
[347299886,1735667449979,-314.847636,0.0002,2]
[347299887,1735667449988,-500.0,0.0002,3]
[347299888,1735667449997,-1161.536742,0.0002,2]
[347299889,1735667450007,-1161.536742,0.0002,2]
[347299890,1735667450016,-1161.536742,0.0002,2]
[347299891,1735667450025,-500.0,0.0002,3]
[347299892,1735667450035,-500.0,0.0002,3]
[347299893,1735667450044,-500.0,0.0002,3]
[347299894,1735667450053,-1583.73,0.0002,3]
[347299895,1735667450062,-500.0,0.0002,3]
[347299896,1735667450071,-479.20874602,0.0002,3]
[347299897,1735667450080,-500.0,0.0002,3]
[347299898,1735667450089,-500.0,0.0002,3]
[347299899,1735667450099,-924.8,0.0002,3]
[347299900,1735667450110,-500.0,0.0002,3]
[347299901,1735667450119,-500.0,0.0002,3]
[347299902,1735667450128,-1636.47,0.0002,3]
[347299903,1735667450137,-500.0,0.0002,3]
[347299904,1735667450146,-973.58,0.0002,3]
[347299905,1735667450155,-500.0,0.0002,3]
[347299906,1735667450164,-970.46,0.0002,3]
[347299907,1735667450173,-500.0,0.0002,3]
[347299908,1735667450182,-500.0,0.0002,3]
[347299909,1735667450192,-949.8,0.0002,3]
[347299910,1735667450200,-742.06,0.0002,3]
[347299911,1735667450210,-889.29,0.0002,3]
[347299912,1735667450219,-500.0,0.0002,3]
[347299913,1735667450229,-1138.73,0.0002,3]
[347299914,1735667450237,-500.0,0.0002,3]
[347299915,1735667450246,-500.0,0.0002,3]
[347299916,1735667450255,-500.0,0.0002,3]
[347299917,1735667450268,-151.0,0.0002,2]
[347299918,1735667450277,-151.0,0.0002,2]
[347299919,1735667450287,-151.0,0.0002,2]
[347299920,1735667450296,-899.84,0.0002,3]
[347299921,1735667450309,-974.07,0.0002,3]
[347299922,1735667450318,-1137.33,0.0002,3]
[347299923,1735667450328,-500.0,0.0002,3]
[347299924,1735667450337,-669.2,0.0002,3]
[347299925,1735667450346,-500.0,0.0002,3]
[347299926,1735667450356,-681.668854,0.0002,2]
[347299927,1735667450369,-681.668854,0.0002,2]
[347299928,1735667450378,-3522.84,0.0002,3]
[347299929,1735667450387,-681.668854,0.0002,2]
[347299930,1735667450397,-681.668854,0.0002,2]
[347299931,1735667450406,-500.0,0.0002,3]
[347299932,1735667450415,-1091.71,0.0002,3]
[347299933,1735667450425,-626.35,0.0002,3]
[347299934,1735667450434,-500.0,0.0002,3]
[347299935,1735667450443,-887.93,0.0002,3]
[347299936,1735667450453,-535.902229,0.0002,2]
[347299937,1735667450462,-535.902229,0.0002,2]
[347299938,1735667450471,-1044.83,0.0002,3]
[347299939,1735667450480,-655.13,0.0002,3]
[347299940,1735667450489,-535.902229,0.0002,2]
[347299941,1735667450499,-500.0,0.0002,3]
[347299942,1735667450508,-535.902229,0.0002,2]
[347299943,1735667450517,-151.0,0.0002,2]
[347299944,1735667450527,-151.0,0.0002,2]
[347299945,1735667450536,-3487.55,0.0002,3]
[347299946,1735667450546,-500.0,0.0002,3]
[347299947,1735667450555,-785.81,0.0002,3]
[347299948,1735667450565,-500.0,0.0002,3]
[347299949,1735667450574,-643.19,0.0002,3]
[347299950,1735667450583,-500.0,0.0002,3]
[347299951,1735667450592,-500.0,0.0002,3]
[347299952,1735667450602,-1011.04,0.0002,3]
[347299953,1735667450614,-500.0,0.0002,3]
[347299954,1735667450623,-500.0,0.0002,3]
[347299955,1735667450632,-6259.3,0.0002,3]
[347299956,1735667450642,-500.0,0.0002,3]
[347299957,1735667450651,-526.01,0.0002,3]
[347299958,1735667450660,-500.0,0.0002,3]
[347299959,1735667450671,-500.0,0.0002,3]
[347299960,1735667450680,-500.0,0.0002,3]
[347299961,1735667450689,-1775.9,0.0002,3]
[347299962,1735667450698,-1175.66,0.0002,3]
[347299963,1735667450707,-49369.0,0.0002,3]
[347299964,1735667450717,-931.62,0.0002,3]
[347299965,1735667450726,-500.0,0.0002,3]
[347299966,1735667450735,-2195.01,0.0002,3]
[347299967,1735667450745,-780.75,0.0002,3]
[347299968,1735667450755,-500.0,0.0002,3]
[347299969,1735667450764,-500.0,0.0002,3]
[347299970,1735667450773,-1238.49,0.0002,3]